fUST/lending_fUST_20250625
["ID","MTS","AMOUNT","RATE_DAILY","PERIOD"]
[367502761,1750830645165,-1632.1,0.00019182,2]
[367502762,1750830645174,-1214.62,0.00019182,2]
[367502763,1750830645183,-460.0,0.00019182,2]
[367502764,1750830645192,-503.32,0.00019182,2]
[367502765,1750830645202,-460.0,0.00019182,2]
[367502766,1750830645211,-460.0,0.00019182,2]
[367502767,1750830645220,-909.8,0.00019182,2]
[367502768,1750830645229,-635.12,0.00019182,2]
[367502769,1750830645238,-460.0,0.00019182,2]
[367502770,1750830645247,-460.0,0.00019182,2]
[367502771,1750830645257,-460.0,0.00019182,2]
[367502772,1750830645266,-1536.19,0.00019182,2]
[367502773,1750830645275,-460.0,0.00019182,2]
[367502774,1750830645285,-460.0,0.00019182,2]
[367502775,1750830645295,-460.0,0.00019182,2]
[367502776,1750830645304,-962.41,0.00019182,2]
[367502777,1750830645313,-460.0,0.00019182,2]
[367502778,1750830645322,-460.0,0.00019182,2]
[367502779,1750830645332,-460.0,0.00019182,2]
[367502780,1750830645341,-790.97,0.00019182,2]
[367502781,1750830645350,-460.0,0.00019182,2]
[367502782,1750830645360,-460.0,0.00019182,2]
[367502783,1750830645369,-529.21,0.00019182,2]
[367502784,1750830645378,-460.0,0.00019182,2]
[367502785,1750830645387,-2576.52,0.00019182,2]
[367502786,1750830645396,-460.0,0.00019182,2]
[367502787,1750830645405,-460.0,0.00019182,2]
[367502788,1750830645414,-460.0,0.00019182,2]
[367502789,1750830645423,-1089.67,0.00019182,2]
[367502790,1750830645434,-460.0,0.00019182,2]
[367502791,1750830645443,-460.0,0.00019182,2]
[367502792,1750830645453,-352.63793751,0.00019215,2]
[367502793,1750830645465,-176.42018452,0.00019218,2]
[367502794,1750830645475,-1285.65215572,0.00019228,2]
[367502795,1750830645489,-460.0,0.00019229,2]
[367502796,1750830645498,-460.0,0.00019229,2]
[367502797,1750830645508,-460.0,0.00019229,2]
[367502798,1750830645517,-460.0,0.00019229,2]
[367502799,1750830645526,-460.0,0.00019229,2]
[367502800,1750830645536,-460.0,0.00019229,2]
[367502801,1750830645546,-460.0,0.00019229,2]
[367502802,1750830645555,-460.0,0.00019229,2]
[367502803,1750830645565,-460.0,0.00019229,2]
[367502804,1750830645574,-460.0,0.00019229,2]
[367502805,1750830645583,-555.86,0.00019229,2]
[367502806,1750830645593,-460.0,0.00019229,2]
[367502807,1750830645602,-460.0,0.00019229,2]
[367502808,1750830645611,-460.0,0.00019229,2]
[367502809,1750830645620,-460.0,0.00019229,2]
[367502810,1750830645630,-460.0,0.00019229,2]
[367502811,1750830645639,-460.0,0.00019229,2]
[367502812,1750830645648,-151.0,0.00019229,2]
[367502813,1750830645657,-151.0,0.00019229,2]
[367502814,1750830645667,-636.51,0.00019229,2]
[367502815,1750830645676,-151.0,0.00019229,2]
[367502816,1750830645686,-500.0,0.00019233,2]
[367502817,1750830645697,-151.0,0.00019233,2]
[367502818,1750830645706,-151.0,0.00019233,2]
[367502819,1750830645715,-151.0,0.00019233,2]
[367502820,1750830645724,-151.0,0.00019233,2]
[367502821,1750830645733,-151.0,0.00019233,2]
[367502822,1750830645742,-151.0,0.00019233,2]
[367502823,1750830645752,-151.0,0.00019233,2]
[367502824,1750830645761,-151.0,0.00019233,2]
[367502825,1750830645771,-151.0,0.00019233,2]
[367502826,1750830645780,-151.0,0.00019233,2]
[367502827,1750830645790,-500.0,0.00019233,2]
[367502828,1750830645799,-151.0,0.00019233,2]
[367502829,1750830645808,-151.36624201,0.00019233,2]
[367502830,1750830645817,-151.0,0.00019233,2]
[367502831,1750830645826,-151.0,0.00019233,2]
[367502832,1750830645837,-151.0,0.00019233,2]
[367502833,1750830645847,-500.0,0.00019233,2]
[367502834,1750830645857,-500.0,0.00019233,2]
[367502835,1750830645866,-151.52823145,0.00019233,2]
[367502836,1750830645875,-500.0,0.00019233,2]
[367502837,1750830645885,-283.5687599,0.00019233,2]
[367502838,1750830645899,-151.57174881,0.00019233,2]
[367502839,1750830645909,-151.52813227,0.00019233,2]
[367502840,1750830645918,-151.13355659,0.00019233,2]
[367502841,1750830645927,-500.0,0.00019233,2]
[367502842,1750830645938,-500.0,0.00019233,2]
[367502843,1750830645947,-500.0,0.00019233,2]
[367502844,1750830645956,-500.0,0.00019233,2]
[367502845,1750830645967,-183.5879596,0.00019233,2]
[367502846,1750830645975,-226.50319526,0.00019233,2]
[367502847,1750830645983,-271.69556157,0.00019233,2]
[367502848,1750830645992,-151.0,0.00019233,2]
[367502849,1750830646002,-500.0,0.00019233,2]
[367502851,1750830646012,-151.0,0.00019233,2]
[367502853,1750830646021,-151.0,0.00019233,2]
[367502854,1750830646032,-500.0,0.00019233,2]
[367502855,1750830646041,-151.0,0.00019233,2]
[367502856,1750830646051,-151.0999679,0.00019233,2]
[367502857,1750830646060,-500.0,0.00019233,2]
[367502858,1750830646070,-151.0,0.00019233,2]
[367502859,1750830646079,-500.0,0.00019233,2]
[367502860,1750830646089,-500.0,0.00019233,2]
[367502861,1750830646098,-151.0,0.00019233,2]
[367502862,1750830646108,-500.0,0.00019233,2]
[367502863,1750830646118,-151.0,0.00019233,2]
[367502864,1750830646127,-151.0,0.00019233,2]
[367502865,1750830646136,-151.0,0.00019233,2]
[367502866,1750830646146,-151.0,0.00019233,2]
[367502867,1750830646156,-174.961452,0.00019233,2]
[367502868,1750830646165,-174.961452,0.00019233,2]
[367502869,1750830646174,-151.0,0.0001926,2]
[367502870,1750830646184,-160.398208,0.0001926,2]
[367502871,1750830646193,-160.398208,0.0001926,2]
[367502872,1750830646202,-151.0,0.0001926,2]
[367502873,1750830646212,-151.0,0.0001926,2]
[367502874,1750830646222,-180.847227,0.0001926,2]
[367502875,1750830646231,-180.847227,0.0001926,2]
[367502876,1750830646240,-151.0,0.0001926,2]
[367502877,1750830646250,-461.508385,0.0001926,2]
[367502878,1750830646259,-461.508385,0.0001926,2]
[367502879,1750830646269,-500.0,0.0001926,2]
[367502880,1750830646279,-151.0,0.0001926,2]
[367502881,1750830646288,-151.0,0.0001926,2]
[367502882,1750830646298,-151.0,0.0001926,2]
[367502883,1750830646307,-151.0,0.0001926,2]
[367502885,1750830646316,-151.0,0.0001926,2]
[367502888,1750830646422,-151.0,0.0001926,2]
[367502889,1750830646444,-151.0,0.0001926,2]
[367502890,1750830646455,-151.0,0.0001926,2]
[367502891,1750830646465,-500.60524823,0.0001926,2]
[367502892,1750830646474,-151.0,0.0001926,2]
[367502893,1750830646484,-151.0,0.0001926,2]
[367502894,1750830646494,-151.0,0.0001926,2]
[367502895,1750830646504,-500.0,0.0001926,2]
[367502896,1750830646514,-500.0,0.0001926,2]
[367502897,1750830646523,-550.32217431,0.0001926,2]
[367502898,1750830646532,-500.0,0.0001926,2]
[367502900,1750830646542,-500.0,0.0001926,2]
[367502902,1750830646551,-500.0,0.0001926,2]
[367502904,1750830646561,-500.0,0.0001926,2]
[367502906,1750830646570,-151.28214266,0.0001926,2]
[367502908,1750830646580,-500.53439709,0.0001926,2]
[367502910,1750830646590,-151.0,0.0001926,2]
[367502912,1750830646599,-151.0,0.0001926,2]
[367502914,1750830646609,-500.0,0.0001926,2]
[367502916,1750830646618,-500.79278989,0.0001926,2]
[367502918,1750830646627,-500.0,0.0001926,2]
[367502920,1750830646637,-500.0,0.0001926,2]
[367502922,1750830646647,-500.0,0.0001926,2]
[367502924,1750830646656,-500.0,0.00019288,2]
[367502926,1750830646666,-151.0,0.00019288,2]
[367502928,1750830646675,-198.73304968,0.00019288,2]
[367502930,1750830646684,-198.0,0.00019288,2]
[367502932,1750830646693,-151.0,0.00019288,2]
[367502934,1750830646702,-198.0,0.00019288,2]
[367502936,1750830646711,-151.0,0.00019288,2]
[367502938,1750830646720,-198.42664727,0.00019288,2]
[367502940,1750830646729,-151.0,0.00019288,2]
[367502942,1750830646738,-198.0,0.00019288,2]
[367502943,1750830646747,-151.0,0.00019288,2]
[367502945,1750830646757,-151.0,0.00019288,2]
[367502947,1750830646766,-349.58172341,0.00019288,2]
[367502949,1750830646775,-350.91885301,0.00019288,2]
[367502951,1750830646785,-500.0,0.00019288,2]
[367502953,1750830646795,-650.48,0.00019288,2]
[367502955,1750830646804,-500.0,0.00019288,2]
[367502957,1750830646813,-500.0,0.00019288,2]
[367502959,1750830646822,-165.58155532,0.00019288,2]
[367502961,1750830646831,-265.81581277,0.00019288,2]
[367502964,1750830646841,-151.0,0.00019288,2]
[367502966,1750830646852,-500.0,0.00019288,2]
[367502968,1750830646862,-302.0,0.00019288,2]
[367502970,1750830646872,-532.98613896,0.00019288,2]
[367502972,1750830646881,-151.0,0.00019288,2]
[367502974,1750830646890,-151.0,0.00019288,2]
[367502975,1750830646902,-151.0,0.00019288,2]
[367502978,1750830646912,-151.0,0.00019288,2]
[367502979,1750830646921,-156.552319,0.00019288,2]
[367502982,1750830646931,-151.0,0.000193,2]
[367502983,1750830646940,-500.0,0.00019315,2]
[367502985,1750830646949,-151.0,0.00019315,2]
[367502987,1750830646958,-151.0,0.00019315,2]
[367502989,1750830646967,-151.0,0.00019315,2]
[367502992,1750830646976,-245.85780394,0.00019315,2]
[367502994,1750830646986,-151.0,0.00019315,2]
[367502996,1750830646995,-151.0,0.00019315,2]
[367502998,1750830647004,-500.0,0.00019315,2]
[367502999,1750830647014,-349.0,0.00019315,2]
[367503001,1750830647023,-500.0,0.00019315,2]
[367503003,1750830647032,-155.228257,0.00019329,2]
[367503005,1750830647042,-151.0,0.00019329,2]
[367503007,1750830647052,-151.0,0.00019329,2]
[367503009,1750830647062,-151.0,0.00019329,2]
[367503011,1750830647072,-151.0,0.00019329,2]
[367503014,1750830647082,-151.0,0.00019329,2]
[367503015,1750830647091,-151.0,0.00019329,2]
[367503017,1750830647100,-151.0,0.00019329,2]
[367503019,1750830647110,-151.0,0.00019329,2]
[367503021,1750830647119,-151.0,0.00019329,2]
[367503023,1750830647128,-169.331294,0.00019329,2]
[367503025,1750830647137,-151.0,0.00019329,2]
[367503027,1750830647146,-151.0,0.00019329,2]
[367503029,1750830647156,-151.0,0.00019329,2]
[367503031,1750830647165,-151.0,0.00019329,2]
[367503033,1750830647174,-198.199152,0.00019329,2]
[367503035,1750830647183,-151.0,0.00019329,2]
[367503037,1750830647192,-151.0,0.00019329,2]
[367503039,1750830647202,-151.0,0.00019329,2]
[367503041,1750830647211,-151.0,0.00019329,2]
[367503043,1750830647220,-151.0,0.00019329,2]
[367503045,1750830647229,-157.920039,0.00019329,2]
[367503047,1750830647238,-157.920039,0.00019329,2]
[367503049,1750830647247,-100000.0,0.00019329,2]
[367503051,1750830647256,-500.0,0.00019343,2]
[367503052,1750830647265,-200.01620139,0.00019343,2]
[367503053,1750830647275,-245.0,0.00019343,2]
[367503054,1750830647284,-245.0,0.00019343,2]
[367503055,1750830647294,-151.0,0.00019343,2]
[367503056,1750830647303,-246.01127713,0.00019343,2]
[367503057,1750830647312,-500.0,0.00019343,2]
[367503058,1750830647322,-151.0,0.00019343,2]
[367503059,1750830647331,-1000.0,0.00019344,2]
[367503060,1750830647340,-1000.0,0.00019344,2]
[367503061,1750830647349,-871.54184984,0.00019344,2]
[367503062,1750830647359,-1000.0,0.00019344,2]
[367503063,1750830647368,-3328.08510369,0.00019348,2]
[367503064,1750830647377,-1529.82,0.0001936,3]
[367503065,1750830647386,-764.9,0.0001936,3]
[367503066,1750830647395,-382.46,0.0001936,3]
[367503067,1750830647404,-151.0,0.00019364,2]
[367503068,1750830647414,-151.0,0.00019364,2]
[367503069,1750830647424,-151.0,0.00019364,2]
[367503070,1750830647434,-500.0,0.00019364,2]
[367503071,1750830647443,-598.06,0.00019368,2]
[367503072,1750830647454,-1462.5,0.00019368,2]
[367503073,1750830647463,-1645.02,0.00019368,2]
[367503074,1750830647473,-1537.24,0.00019368,2]
[367503075,1750830647483,-1314.23,0.00019368,2]
[367503076,1750830647492,-1734.46,0.00019368,2]
[367503077,1750830647502,-460.0,0.00019368,2]
[367503078,1750830647511,-460.0,0.00019368,2]
[367503079,1750830647521,-1193.57,0.00019368,2]
[367503080,1750830647531,-460.0,0.00019368,2]
[367503081,1750830647540,-1846.97,0.00019368,2]
[367503082,1750830647549,-1649.79,0.00019369,2]
[367503083,1750830647559,-500.0,0.0001937,2]
[367503084,1750830647569,-178.72602344,0.0001937,2]
[367503085,1750830647578,-570.95606446,0.0001937,2]
[367503086,1750830647587,-460.0,0.00019376,2]
[367503087,1750830647597,-460.0,0.00019376,2]
[367503088,1750830647607,-687.0,0.00019381,2]
[367503089,1750830647616,-308.8922713,0.00019394,2]
[367503090,1750830647626,-504.0,0.00019397,2]
[367503091,1750830647635,-1000.0,0.000194,2]
[367503092,1750830647644,-1000.0,0.000194,2]
[367503093,1750830647654,-1000.0,0.00019404,2]
[367503094,1750830647663,-1000.0,0.00019404,2]
[367503095,1750830647673,-3845.71024664,0.00019419,2]
[367503096,1750830647682,-1000.0,0.00019426,2]
[367503097,1750830647693,-151.0,0.00019426,2]
[367503098,1750830647702,-151.0,0.00019426,2]
[367503099,1750830647712,-153.047609,0.00019426,2]
[367503100,1750830647722,-151.517338,0.00019426,2]
[367503101,1750830647731,-174.961452,0.00019426,2]
[367503102,1750830647740,-174.961452,0.00019426,2]
[367503103,1750830647749,-1000.0,0.00019427,2]
[367503104,1750830647759,-502.55043655,0.00019427,2]
[367503105,1750830647768,-505.55973909,0.00019427,2]
[367503106,1750830647777,-724.00444455,0.00019427,2]
[367503107,1750830647787,-500.0,0.0001943,2]
[367503108,1750830647796,-204.18694135,0.0001943,2]
[367503109,1750830647805,-502.23501126,0.0001943,2]
[367503110,1750830647814,-500.0,0.0001943,2]
[367503111,1750830647824,-920.0,0.00019452,2]
[367503112,1750830647833,-1632.1,0.00019456,2]
[367503113,1750830647842,-151.0,0.00019456,2]
[367503114,1750830647851,-1214.62,0.00019456,2]
[367503115,1750830647861,-151.0,0.00019456,2]
[367503116,1750830647870,-460.0,0.00019456,2]
[367503117,1750830647880,-503.32,0.00019456,2]
[367503118,1750830647889,-599.4,0.00019456,2]
[367503119,1750830647902,-460.0,0.00019456,2]
[367503120,1750830647911,-151.0,0.00019456,2]
[367503121,1750830647921,-151.0,0.00019456,2]
[367503122,1750830647930,-909.8,0.00019456,2]
[367503123,1750830647941,-151.0,0.00019456,2]
[367503124,1750830647951,-635.12,0.00019456,2]
[367503125,1750830647960,-460.0,0.00019456,2]
[367503126,1750830647970,-460.0,0.00019456,2]
[367503127,1750830647979,-460.0,0.00019456,2]
[367503128,1750830647988,-160.398208,0.00019456,2]
[367503129,1750830647998,-1536.19,0.00019456,2]
[367503130,1750830648007,-460.0,0.00019456,2]
[367503131,1750830648016,-460.0,0.00019456,2]
[367503132,1750830648026,-160.398208,0.00019456,2]
[367503133,1750830648035,-237.404975,0.00019456,2]
[367503134,1750830648045,-151.0,0.00019456,2]
[367503135,1750830648053,-180.847227,0.00019456,2]
[367503136,1750830648063,-180.847227,0.00019456,2]
[367503137,1750830648072,-460.0,0.00019456,2]
[367503138,1750830648081,-962.41,0.00019456,2]
[367503139,1750830648091,-460.0,0.00019456,2]
[367503140,1750830648101,-460.0,0.00019456,2]
[367503141,1750830648110,-151.0,0.00019456,2]
[367503142,1750830648120,-460.0,0.00019456,2]
[367503143,1750830648129,-790.97,0.00019456,2]
[367503144,1750830648138,-460.0,0.00019456,2]
[367503145,1750830648148,-473.74,0.00019456,2]
[367503146,1750830648158,-529.21,0.00019456,2]
[367503147,1750830648167,-460.0,0.00019456,2]
[367503148,1750830648176,-2576.52,0.00019456,2]
[367503149,1750830648186,-461.508385,0.00019456,2]
[367503150,1750830648195,-460.0,0.00019456,2]
[367503151,1750830648205,-461.508385,0.00019456,2]
[367503152,1750830648214,-460.0,0.00019456,2]
[367503153,1750830648224,-460.0,0.00019456,2]
[367503154,1750830648233,-1089.67,0.00019456,2]
[367503155,1750830648243,-460.0,0.00019456,2]
[367503156,1750830648252,-460.0,0.00019456,2]
[367503157,1750830648261,-517.33332786,0.00019467,2]
[367503158,1750830648271,-687.0,0.00019497,2]
[367503159,1750830648280,-151.0,0.000195,2]
[367503160,1750830648289,-489.7,0.00019503,2]
[367503161,1750830648299,-460.0,0.00019503,2]
[367503162,1750830648308,-460.0,0.00019503,2]
[367503163,1750830648317,-460.0,0.00019503,2]
[367503164,1750830648326,-460.0,0.00019503,2]
[367503165,1750830648335,-460.0,0.00019503,2]
[367503166,1750830648345,-460.0,0.00019503,2]
[367503167,1750830648354,-460.0,0.00019503,2]
[367503168,1750830648363,-460.0,0.00019503,2]
[367503169,1750830648372,-460.0,0.00019503,2]
[367503170,1750830648382,-460.0,0.00019503,2]
[367503171,1750830648391,-460.0,0.00019503,2]
[367503172,1750830648401,-460.0,0.00019503,2]
[367503173,1750830648410,-460.0,0.00019503,2]
[367503174,1750830648419,-636.51,0.00019503,2]
[367503175,1750830648428,-1000.0,0.00019521,2]
[367503176,1750830648437,-500.14348554,0.00019521,2]
[367503177,1750830648447,-200.8096727,0.00019534,2]
[367503178,1750830648456,-5000.0,0.00019556,2]
[367503179,1750830648466,-434.61793856,0.00019566,2]
[367503180,1750830648475,-1000.0,0.00019566,2]
[367503181,1750830648484,-3328.08510369,0.0001959,2]
[367503182,1750830648494,-787.0,0.00019623,2]
[367503183,1750830648503,-420.0,0.00019628,2]
[367503184,1750830648512,-420.0,0.00019638,2]
[367503185,1750830648522,-1462.5,0.00019642,2]
[367503186,1750830648531,-1645.02,0.00019642,2]
[367503187,1750830648541,-1537.24,0.00019642,2]
[367503188,1750830648550,-1314.23,0.00019642,2]
[367503189,1750830648560,-1734.46,0.00019642,2]
[367503190,1750830648569,-460.0,0.00019642,2]
[367503191,1750830648579,-440.41,0.00019642,2]
[367503192,1750830648588,-1193.57,0.00019642,2]
[367503193,1750830648598,-460.0,0.00019642,2]
[367503194,1750830648608,-1846.97,0.00019642,2]
[367503195,1750830648617,-1649.79,0.00019643,2]
[367503196,1750830648626,-603.13,0.0001965,2]
[367503197,1750830648636,-151.0,0.000197,2]
[367503198,1750830648645,-1680.0,0.00019725,2]
[367503199,1750830648655,-223.0,0.00019726,3]
[367503200,1750830648665,-1632.1,0.0001973,2]
[367503201,1750830648675,-1214.62,0.0001973,2]
[367503202,1750830648892,-460.0,0.0001973,2]
[367503203,1750830648905,-503.32,0.0001973,2]
[367503204,1750830648915,-460.0,0.0001973,2]
[367503205,1750830648925,-909.8,0.0001973,2]
[367503206,1750830648935,-635.12,0.0001973,2]
[367503207,1750830648944,-402.94,0.0001973,2]
[367503208,1750830648954,-460.0,0.0001973,2]
[367503209,1750830648963,-460.0,0.0001973,2]
[367503210,1750830648973,-1536.19,0.0001973,2]
[367503211,1750830648982,-460.0,0.0001973,2]
[367503212,1750830648991,-460.0,0.0001973,2]
[367503213,1750830649000,-460.0,0.0001973,2]
[367503214,1750830649009,-962.41,0.0001973,2]
[367503215,1750830649019,-460.0,0.0001973,2]
[367503216,1750830649028,-460.0,0.0001973,2]
[367503217,1750830649037,-466.44,0.0001973,2]
[367503218,1750830649051,-790.97,0.0001973,2]
[367503219,1750830649060,-460.0,0.0001973,2]
[367503220,1750830649070,-529.21,0.0001973,2]
[367503221,1750830649079,-460.0,0.0001973,2]
[367503222,1750830649088,-2576.52,0.0001973,2]
[367503223,1750830649098,-460.0,0.0001973,2]
[367503224,1750830649108,-460.0,0.0001973,2]
[367503225,1750830649117,-460.0,0.0001973,2]
[367503226,1750830649127,-1089.67,0.0001973,2]
[367503227,1750830649136,-460.0,0.0001973,2]
[367503228,1750830649146,-460.0,0.0001973,2]
[367503229,1750830649155,-687.0,0.00019742,2]
[367503230,1750830649166,-460.0,0.00019777,2]
[367503231,1750830649281,-460.0,0.00019777,2]
[367503232,1750830649292,-460.0,0.00019777,2]
[367503233,1750830649302,-508.86,0.00019777,2]
[367503234,1750830649311,-460.0,0.00019777,2]
[367503235,1750830649321,-460.0,0.00019777,2]
[367503236,1750830649331,-460.0,0.00019777,2]
[367503237,1750830649340,-460.0,0.00019777,2]
[367503238,1750830649350,-460.0,0.00019777,2]
[367503239,1750830649360,-460.0,0.00019777,2]
[367503240,1750830649369,-460.0,0.00019777,2]
[367503241,1750830649379,-460.0,0.00019777,2]
[367503242,1750830649389,-460.0,0.00019777,2]
[367503243,1750830649399,-636.51,0.00019777,2]
[367503244,1750830649408,-3328.08510369,0.00019831,2]
[367503245,1750830649418,-1500.0,0.00019892,2]
[367503246,1750830649429,-1019.76312072,0.00019892,2]
[367503247,1750830649438,-1002.42028969,0.00019892,2]
[367503248,1750830649449,-151.0,0.000199,2]
[367503249,1750830649458,-3845.71024664,0.000199,2]
[367503250,1750830649468,-1462.5,0.00019916,2]
[367503251,1750830649477,-1645.02,0.00019916,2]
[367503252,1750830649487,-1537.24,0.00019916,2]
[367503253,1750830649496,-1314.23,0.00019916,2]
[367503254,1750830649506,-1734.46,0.00019916,2]
[367503255,1750830649516,-460.0,0.00019916,2]
[367503256,1750830649526,-1193.57,0.00019916,2]
[367503257,1750830649535,-460.0,0.00019916,2]
[367503258,1750830649545,-1846.97,0.00019916,2]
[367503259,1750830649555,-1649.79,0.00019917,2]
[367503260,1750830649564,-805.39710031,0.00019948,2]
[367503261,1750830649574,-1003.72718248,0.00019948,2]
[367503262,1750830649583,-1504.49105772,0.00019952,2]
[367503263,1750830649593,-395.67986745,0.00019952,2]
[367503264,1750830649602,-1500.0,0.00019974,2]
[367503265,1750830649611,-1500.0,0.00019975,2]
[367503266,1750830649621,-163.0,0.0002,5]
[367503267,1750830649631,-164.51632707,0.0002,6]
[367503268,1750830649640,-163.0,0.0002,4]
[367503269,1750830649649,-163.0,0.0002,5]
[367503270,1750830649659,-163.0,0.0002,5]
[367503271,1750830649668,-165479.54325288,0.0002,2]
[367503272,1750830649809,-6311.98513412,0.0002,2]
[367503273,1750830649822,-1952.14862093,0.0002,2]
[367503274,1750830649843,-3275.15707,0.0002,2]
[367503275,1750830649948,-151.0,0.00019,2]
[367503276,1750830649958,-149.0,0.0002,2]
[367503277,1750830649969,-1232.18530486,0.0002,2]
[367503278,1750830649984,-151.0,0.00019233,2]
[367503279,1750830649994,-99.0,0.0002,2]
[367503280,1750830650005,-6778.42052267,0.0002,2]
[367503281,1750830650016,-537.0600867,0.0002,2]
[367503282,1750830650148,-460.0,0.00017996,2]
[367503283,1750830650159,-288.246198,0.00017998,2]
[367503284,1750830650170,-171.753802,0.00017998,2]
[367503285,1750830650179,-460.0,0.00018133,2]
[367503286,1750830650189,-460.0,0.00018407,2]
[367503287,1750830650199,-460.0,0.00018681,2]
[367503288,1750830650209,-152.85592,0.00019,2]
[367503289,1750830650218,-151.0,0.00019368,2]
[367503290,1750830650227,-87.69547122,0.0002,2]
[367503291,1750830650269,-460.0,0.00017999,2]
[367503292,1750830650278,-40.0,0.00018133,2]
[367503293,1750830650290,-304.71651119,0.00018133,2]
[367503294,1750830650301,-115.28348881,0.00018133,2]
[367503295,1750830650310,-1286.17967675,0.0002,2]
[367503296,1750830650935,-3.02528809,0.0002,2]
[367503297,1750830650947,-12808.58957178,0.0002,2]
[367503298,1750830650956,-5691.12857096,0.0002,4]
[367503301,1750830797648,3000.0,0.00023,30]
[367503363,1750831179262,500.0,2.5e-05,30]
[367503364,1750831188257,160.63345,0.00013699,2]
[367503379,1750831831773,-1342.6948924,0.00017,2]
[367503381,1750831831783,-325.96345392,0.00017893,2]
[367503382,1750831831793,-1538.28409868,0.00017899,2]
[367503383,1750831831802,-446.19,0.00017984,3]
[367503384,1750831831811,-223.1,0.00017984,3]
[367503385,1750831831821,-669.31,0.00017984,3]
[367503386,1750831831830,-352.63793751,0.00017985,2]
[367503387,1750831831839,-300.0,0.00017987,2]
[367503388,1750831831848,-1200.0,0.00017987,2]
[367503389,1750831831858,-300.0,0.00017988,2]
[367503390,1750831831867,-500.0,0.00017989,2]
[367503391,1750831831876,-500.0,0.00017989,2]
[367503392,1750831831886,-500.0,0.00017989,2]
[367503393,1750831831895,-500.0,0.00017989,2]
[367503394,1750831831905,-500.0,0.00017989,2]
[367503395,1750831831914,-500.0,0.00017989,2]
[367503396,1750831831924,-500.0,0.00017989,2]
[367503397,1750831831933,-500.0,0.00017989,2]
[367503398,1750831831943,-500.0,0.00017989,2]
[367503399,1750831831952,-442.28299648,0.00017989,2]
[367503400,1750831831961,-460.0,0.00017992,2]
[367503401,1750831831970,-460.0,0.00017992,2]
[367503402,1750831831980,-1198.21,0.00017992,2]
[367503403,1750831831989,-450.0,0.00017992,2]
[367503404,1750831831999,-458.27026235,0.00017992,2]
[367503405,1750831832009,-460.0,0.00017992,2]
[367503406,1750831832018,-460.0,0.00017992,2]
[367503407,1750831832027,-460.0,0.00017992,2]
[367503408,1750831832037,-460.0,0.00017992,2]
[367503409,1750831832046,-436.69554052,0.00017992,2]
[367503410,1750831832055,-1533.73,0.00017992,2]
[367503411,1750831832065,-460.0,0.00017992,2]
[367503412,1750831832074,-460.0,0.00017992,2]
[367503413,1750831832083,-1420.92,0.00017992,2]
[367503414,1750831832092,-460.0,0.00017992,2]
[367503415,1750831832102,-460.0,0.00017992,2]
[367503416,1750831832111,-460.0,0.00017992,2]
[367503417,1750831832120,-460.0,0.00017992,2]
[367503418,1750831832130,-1044.21,0.00017992,2]
[367503419,1750831832139,-460.0,0.00017992,2]